bitfinex/quotes_ETHUSD_20251213
["timestamp","ask_amount","ask_price","bid_price","bid_amount"]
[1765645692176,8.44084547,3102.7,3102.6,0.002]
[1765645694472,7.98004547,3102.7,3102.6,0.002]
[1765645694638,41.16082211,3102.7,3102.3,0.002]
[1765645694870,29.35649629,3102.4,3102.3,0.002]
[1765645695072,30.16812415,3102.4,3102.3,0.002]
[1765645695273,30.63092415,3102.4,3102.3,0.002]
[1765645696300,33.85347655,3102.4,3102.3,0.002]
[1765645697603,7.83040755,3102.4,3102.3,0.002]
[1765645697806,9.73581755,3102.4,3102.3,0.002]
[1765645698004,9.73581755,3102.4,3102.3,0.4585]
[1765645698005,8.81571355,3102.4,3102.3,0.4585]
[1765645698204,4.61465555,3102.4,3102.3,0.4585]
[1765645698387,4.61465555,3102.4,3102.3,0.9574]
[1765645698702,5.07755555,3102.4,3102.3,0.002]
[1765645699101,4.61465555,3102.4,3102.3,0.4585]
[1765645699696,4.10465555,3102.4,3102.3,0.4585]
[1765645700004,0.81086928,3102.4,3102.3,0.9574]
[1765645700376,1.39134457,3102.4,3102.3,0.9574]
[1765645700572,0.81086928,3102.4,3102.3,0.9574]
[1765645700776,0.30086928,3102.4,3102.3,0.9574]
[1765645700971,1.39134457,3102.4,3102.3,0.9574]
[1765645702307,1.39134457,3102.4,3102.3,0.002]
[1765645702514,4.88315555,3102.4,3102.3,0.002]
[1765645702719,21.75114455,3102.4,3102.3,0.002]
[1765645703501,4.88315555,3102.4,3102.3,0.002]
[1765645703710,7.75978255,3102.4,3102.3,0.002]
[1765645708112,8.21748255,3102.4,3102.3,0.002]
[1765645709811,7.75978255,3102.4,3102.3,0.002]
[1765645710599,8.21748255,3102.4,3102.3,0.002]
[1765645712417,7.75978255,3102.4,3102.3,0.002]
[1765645713126,7.45891327,3102.4,3102.3,0.002]
[1765645713430,7.75980309,3102.4,3102.3,0.002]
[1765645714628,8.21750309,3102.4,3102.3,0.002]
[1765645715130,7.24980309,3102.4,3102.3,0.002]
[1765645715332,7.49030309,3102.4,3102.3,0.4753]
[1765645715832,4.26699211,3102.4,3102.3,0.4753]
[1765645716831,7.49030309,3102.4,3102.3,0.4753]
[1765645717229,7.49030309,3102.4,3102.3,0.9719]
[1765645718052,4.26699211,3102.4,3102.3,0.9719]
[1765645718652,7.49054339,3102.4,3102.3,0.9719]
[1765645718824,4.61391639,3102.4,3102.3,0.9719]
[1765645719320,1.39060541,3102.4,3102.3,0.9719]
[1765645721649,4.61391639,3102.4,3102.3,0.9719]
[1765645721829,4.61391639,3102.4,3102.3,0.4753]
[1765645723553,1.39060541,3102.4,3102.3,0.9719]
[1765645723951,0.88160541,3102.4,3102.3,0.9719]
[1765645724123,1.39060541,3102.4,3102.3,0.9719]
[1765645724543,0.88160541,3102.4,3102.3,0.9719]
[1765645724749,1.39060541,3102.4,3102.3,0.9719]
[1765645726963,0.88160541,3102.4,3102.3,0.9719]
[1765645727135,1.39060541,3102.4,3102.3,0.9719]
[1765645727534,0.88160541,3102.4,3102.3,0.9719]
[1765645727749,1.39060541,3102.4,3102.3,0.9719]
[1765645729271,0.88160541,3102.4,3102.3,0.9719]
[1765645729570,1.39060541,3102.4,3102.3,0.9719]
[1765645730465,0.88160541,3102.4,3102.3,0.9719]
[1765645730671,1.39060541,3102.4,3102.3,0.9719]
[1765645731262,1.39060541,3102.4,3102.3,1.39144131]
[1765645732367,1.39060541,3102.4,3102.3,0.9719]
[1765645734771,1.39060541,3102.4,3102.3,0.4753]
[1765645734973,1.67760541,3102.4,3102.3,0.002]
[1765645735280,1.39060541,3102.4,3102.3,0.002]
[1765645736776,1.39060541,3102.4,3102.3,0.4573]
[1765645738468,1.39060541,3102.4,3102.3,0.9415]
[1765645749704,1.39060541,3102.4,3102.3,0.4573]
[1765645750704,4.61391639,3102.4,3102.3,0.4573]
[1765645751289,4.86171639,3102.4,3102.3,0.002]
[1765645754109,5.34761639,3102.4,3102.3,0.002]
[1765645754487,4.86171639,3102.4,3102.3,0.002]
[1765645755117,5.34761639,3102.4,3102.3,0.002]
[1765645756095,6.20468856,3102.4,3102.3,0.002]
[1765645758826,8.61530355,3102.4,3102.3,0.002]
[1765645759030,8.97530355,3102.4,3102.3,0.002]
[1765645759394,6.20519655,3102.4,3102.3,0.002]
[1765645759621,16.17834955,3102.4,3102.3,0.002]
[1765645760613,15.85568555,3102.4,3102.3,0.002]
[1765645761627,15.85471855,3102.4,3102.3,0.002]
[1765645761828,14.33571855,3102.4,3102.3,0.002]
[1765645762227,14.74122255,3102.4,3102.3,0.002]
[1765645762602,34.97661755,3102.4,3102.3,0.002]
[1765645764431,24.10582655,3102.4,3102.3,0.002]
[1765645764729,21.70413855,3102.4,3102.3,0.002]
[1765645764928,14.81644655,3102.4,3102.3,0.002]
[1765645765123,13.77012755,3102.4,3102.3,0.002]
[1765645765928,10.77042055,3102.4,3102.3,0.002]
[1765645766102,9.60028955,3102.4,3102.3,0.002]
[1765645766600,6.61070055,3102.4,3102.3,0.002]
[1765645766830,20.03753255,3102.4,3102.3,0.002]
[1765645767608,31.05450855,3102.4,3102.3,0.002]
[1765645768737,34.97661755,3102.4,3102.3,0.002]
[1765645771759,6.61070055,3102.4,3102.3,0.002]
[1765645772059,34.97661755,3102.4,3102.3,0.002]
[1765645772761,34.46761755,3102.4,3102.3,0.002]
[1765645772964,34.97661755,3102.4,3102.3,0.002]
[1765645774835,34.46761755,3102.4,3102.3,0.002]
[1765645775163,34.97661755,3102.4,3102.3,0.002]
[1765645775858,14.11527555,3102.4,3102.3,0.002]
[1765645776068,14.36552355,3102.4,3102.3,0.002]
[1765645777003,15.77344855,3102.4,3102.3,0.002]
[1765645777138,16.22914855,3102.4,3102.3,0.002]
[1765645777859,26.07795055,3102.4,3102.3,0.002]
[1765645778073,13.58308455,3102.4,3102.3,0.002]
[1765645778437,13.86308455,3102.4,3102.3,0.002]
[1765645778877,16.57620355,3102.4,3102.3,0.002]
[1765645779041,15.63009555,3102.4,3102.3,0.002]
[1765645779237,11.80661455,3102.4,3102.3,0.002]
[1765645779957,8.94822355,3102.4,3102.3,0.4755]
[1765645780159,9.86272755,3102.4,3102.3,0.4755]
[1765645780370,9.86272755,3102.4,3102.3,0.9705]
[1765645780579,9.86272755,3102.4,3102.3,0.4755]
[1765645780935,10.59662755,3102.4,3102.3,0.002]
[1765645781750,9.35372755,3102.4,3102.3,0.4755]
[1765645782060,9.86272755,3102.4,3102.3,0.4755]
[1765645782241,9.86272755,3102.4,3102.3,0.002]
[1765645782440,10.14272755,3102.4,3102.3,0.002]
[1765645782852,9.86272755,3102.4,3102.3,0.002]
[1765645783469,9.86272755,3102.4,3102.3,0.4755]
[1765645783668,9.35372755,3102.4,3102.3,0.4755]
[1765645783845,8.60015138,3102.4,3102.3,0.4755]
[1765645784241,8.60015138,3102.4,3102.3,0.9705]
[1765645785167,8.60015138,3102.4,3102.3,0.4755]
[1765645785345,8.60015138,3102.4,3102.3,0.002]
[1765645785756,8.88015138,3102.4,3102.3,0.002]
[1765645786071,10.41279745,3102.4,3102.3,0.002]
[1765645789777,10.13279745,3102.4,3102.3,0.9705]
[1765645790074,10.13279745,3102.4,3102.3,0.4755]
[1765645790281,9.62379745,3102.4,3102.3,0.4755]
[1765645790579,10.41279745,3102.4,3102.3,0.002]
[1765645791080,10.86669745,3102.4,3102.3,0.002]
[1765645795592,11.27220145,3102.4,3102.3,0.002]
[1765645797499,11.91520145,3102.4,3102.3,0.002]
[1765645798890,0.58047529,3102.1,3101.9,0.002]
[1765645799199,4.61934002,3102.0,3101.9,0.002]
[1765645800993,5.21934002,3102.0,3101.9,0.002]
[1765645801572,1.9911134,3102.0,3101.9,0.9371]
[1765645801774,1.4821134,3102.0,3101.9,0.9371]
[1765645802598,1.9911134,3102.0,3101.9,0.9371]
[1765645806195,5.21484002,3102.0,3101.9,0.9371]
[1765645806702,1.9911134,3102.0,3101.9,0.9371]
[1765645806897,5.21484002,3102.0,3101.9,0.9371]
[1765645808106,5.68114002,3102.0,3101.9,0.002]
[1765645808298,5.95064002,3102.0,3101.9,0.002]
[1765645809412,5.68114002,3102.0,3101.9,0.002]
[1765645810613,5.68095708,3102.0,3101.9,0.002]
[1765645811403,6.96579925,3102.0,3101.9,0.002]
[1765645811593,36.00672025,3102.0,3101.9,0.002]
[1765645812597,36.45752025,3102.0,3101.9,0.002]
[1765645813612,8.09160325,3102.0,3101.9,0.002]
[1765645813786,0.98597929,3101.9,3101.6,0.002]
[1765645813987,0.408204,3101.7,3101.6,0.002]
[1765645814192,0.70965917,3101.7,3101.6,0.002]
[1765645814401,3.9336976,3101.7,3101.6,0.002]
[1765645814711,4.3844976,3101.7,3101.6,0.002]
[1765645815084,4.8907976,3101.7,3101.6,0.4863]
[1765645815792,5.1452976,3101.7,3101.6,0.002]
[1765645816112,6.08777879,3101.7,3101.6,0.002]
[1765645816317,6.66825408,3101.7,3101.6,0.002]
[1765645817436,35.12861824,3101.7,3101.6,0.002]
[1765645817635,41.5766951,3101.7,3101.3,0.002]
[1765645817937,29.35669629,3101.4,3101.3,0.002]
[1765645818229,3.63473846,3101.4,3101.3,0.002]
[1765645818384,8.30874575,3101.4,3101.3,0.4863]
[1765645818585,8.76154575,3101.4,3101.3,0.4863]
[1765645819212,19.67398675,3101.4,3101.3,0.4863]
[1765645819416,21.1278924,3101.4,3101.3,0.4863]
[1765645819628,21.3823924,3101.4,3101.3,0.002]
[1765645819802,17.5861964,3101.4,3101.3,0.002]
[1765645820002,11.77853975,3101.4,3101.3,0.4863]
[1765645820203,9.23109975,3101.4,3101.3,0.4863]
[1765645820515,7.91466775,3101.4,3101.3,0.9371]
[1765645821118,7.91466775,3101.4,3101.3,0.4863]
[1765645821432,7.91466775,3101.4,3101.3,0.9371]
[1765645821792,5.06808075,3101.4,3101.3,0.9371]
[1765645822198,8.89251775,3101.4,3101.3,0.9371]
[1765645822736,8.38351775,3101.4,3101.3,0.9371]
[1765645822934,5.06808075,3101.4,3101.3,0.9371]
[1765645823134,4.61528075,3101.4,3101.3,0.9371]
[1765645826046,4.10628075,3101.4,3101.3,0.9371]
[1765645826246,4.61528075,3101.4,3101.3,0.9371]
[1765645827039,1.39093046,3101.4,3101.3,0.9371]
[1765645827225,4.10628075,3101.4,3101.3,0.9371]
[1765645827406,1.39093046,3101.4,3101.3,0.9371]
[1765645828329,4.61528075,3101.4,3101.3,0.9371]
[1765645829116,0.88193046,3101.4,3101.3,0.9371]
[1765645829320,4.10628075,3101.4,3101.3,0.9371]
[1765645831341,4.10628075,3101.4,3101.3,0.4863]
[1765645832039,4.10628075,3101.4,3101.3,0.9434]
[1765645832240,4.35268075,3101.4,3101.3,0.002]
[1765645832846,4.10628075,3101.4,3101.3,0.002]
[1765645833856,4.10628075,3101.4,3101.3,0.4804]
[1765645834050,4.10628075,3101.4,3101.3,0.9375]
[1765645836055,4.10628075,3101.4,3101.3,0.4804]
[1765645837050,4.10628075,3101.4,3101.3,0.002]
[1765645837355,4.35268075,3101.4,3101.3,0.002]
[1765645837747,4.84078075,3101.4,3101.3,0.002]
[1765645837947,5.59808749,3101.4,3101.3,0.002]
[1765645838149,34.45210449,3101.4,3101.3,0.002]
[1765645838353,23.06754549,3101.4,3101.3,0.002]
[1765645838549,23.19670795,3101.4,3101.3,0.002]
[1765645838771,22.88672395,3101.4,3101.3,0.002]
[1765645840069,34.58126695,3101.4,3101.3,0.002]
[1765645842237,21.00708995,3101.4,3101.3,0.002]
[1765645843162,34.98677095,3101.4,3101.3,0.002]
[1765645843971,0.98597929,3101.3,3101.0,0.002]
[1765645844270,3.8100375,3101.1,3101.0,0.002]
[1765645844465,5.11109267,3101.1,3101.0,0.002]
[1765645844765,5.24026806,3101.1,3101.0,0.002]
[1765645847598,33.60618506,3101.1,3101.0,0.002]
[1765645847798,34.01168906,3101.1,3101.0,0.002]
[1765645848097,35.2570958,3101.1,3101.0,0.002]
[1765645854212,33.9784828,3101.1,3101.0,0.002]
[1765645854412,6.8911788,3101.1,3101.0,0.002]
[1765645854584,35.2570958,3101.1,3101.0,0.002]
[1765645855407,6.8911788,3101.1,3101.0,0.002]
[1765645855607,35.2570958,3101.1,3101.0,0.002]
[1765645858582,10.0922248,3101.1,3101.0,0.4715]
[1765645858804,7.45691367,3101.1,3101.0,0.9683]
[1765645859515,15.43346867,3101.1,3101.0,0.4715]
[1765645860228,16.08067267,3101.1,3101.0,0.002]
[1765645860513,25.41255767,3101.1,3101.0,0.002]
[1765645861313,24.25635367,3101.1,3101.0,0.4715]
[1765645861523,24.25635367,3101.1,3101.0,0.9683]
[1765645861524,8.51041867,3101.1,3101.0,0.9683]
[1765645861882,8.21952667,3101.1,3101.0,0.9683]
[1765645862087,8.21952667,3101.1,3101.0,0.4715]
[1765645862313,8.46122667,3101.1,3101.0,0.002]
[1765645862517,11.29421467,3101.1,3101.0,0.002]
[1765645863011,11.89421467,3101.1,3101.0,0.002]
[1765645863212,10.11856267,3101.1,3101.0,0.4715]
[1765645863398,10.62756267,3101.1,3101.0,0.4715]
[1765645863598,11.79488067,3101.1,3101.0,0.4715]
[1765645864022,11.50396267,3101.1,3101.0,0.4715]
[1765645864318,10.32904767,3101.1,3101.0,0.9683]
[1765645864515,4.70659267,3101.1,3101.0,0.4715]
[1765645864716,5.21559267,3101.1,3101.0,0.4715]
[1765645865015,4.70659267,3101.1,3101.0,0.9683]
[1765645865200,5.21559267,3101.1,3101.0,0.9683]
[1765645865602,4.70659267,3101.1,3101.0,0.9683]
[1765645865803,5.21559267,3101.1,3101.0,0.9683]
[1765645868027,4.70659267,3101.1,3101.0,0.9683]
[1765645868198,5.21559267,3101.1,3101.0,0.9683]
[1765645871322,4.70659267,3101.1,3101.0,0.9683]
[1765645871498,5.21559267,3101.1,3101.0,0.9683]
[1765645873521,5.21559267,3101.1,3101.0,0.75850218]
[1765645874130,1.41045517,3101.1,3101.0,0.75850218]
[1765645874329,4.63511738,3101.1,3101.0,0.75850218]
[1765645874515,4.70659267,3101.1,3101.0,0.75850218]
[1765645874827,5.21559267,3101.1,3101.0,0.75850218]
[1765645875131,1.99093046,3101.1,3101.0,0.75850218]
[1765645875426,1.48193046,3101.1,3101.0,0.75850218]
[1765645877228,4.70659267,3101.1,3101.0,0.75850218]
[1765645877719,1.48193046,3101.1,3101.0,0.75850218]
[1765645879819,4.70659267,3101.1,3101.0,0.75850218]
[1765645880131,4.70604336,3101.1,3101.0,0.75850218]
[1765645880434,1.48138115,3101.1,3101.0,0.75850218]
[1765645888117,1.48138115,3101.1,3101.0,0.26170218]
[1765645888443,1.48138115,3101.1,3101.0,0.74780218]
[1765645888964,4.70604336,3101.1,3101.0,0.74780218]
[1765645889453,4.70604336,3101.1,3101.0,0.26170218]
[1765645889750,1.48138115,3101.1,3101.0,0.74780218]
[1765645892274,4.70604336,3101.1,3101.0,0.74780218]
[1765645892874,1.48138115,3101.1,3101.0,0.74780218]
[1765645897075,1.48138115,3101.1,3101.0,1.14507056]
[1765645898282,1.48138115,3101.1,3101.0,4.36983676]
[1765645898660,0.90090586,3101.1,3101.0,4.36983676]
[1765645898970,0.6,3101.1,3101.0,8.19883676]
[1765645899348,0.509,3101.9,3101.0,11.42360296]
[1765645899573,0.30094545,3101.8,3101.1,5.5481603]
[1765645899775,0.30094545,3101.7,3101.1,5.5481603]
[1765645900076,0.30094545,3101.6,3101.2,0.4861]
[1765645900287,0.30094545,3101.5,3101.2,0.4861]
[1765645900582,0.30094545,3101.4,3101.2,0.4861]
[1765645900764,0.509,3101.9,3101.8,0.4934]
[1765645900956,0.80985846,3101.9,3101.8,0.4934]
[1765645901155,0.80985846,3101.9,3101.8,0.9795]
[1765645901351,1.39033375,3101.9,3101.4,3.22435029]
[1765645901689,0.30085846,3101.8,3101.5,0.4861]
[1765645901858,0.30085846,3101.7,3101.5,0.4861]
[1765645902181,0.30085846,3101.6,3101.5,0.85715354]
[1765645903883,0.30085846,3101.6,3101.5,1.35055354]
[1765645905395,0.30085846,3101.6,3101.5,4.57479987]
[1765645908104,0.509,3102.1,3101.5,4.57479987]
[1765645908271,1.08947529,3102.1,3102.0,0.4934]
[1765645908472,1.389874,3102.1,3102.0,0.4934]
[1765645909203,1.38987396,3102.1,3102.0,0.4934]
[1765645909975,4.03302137,3102.1,3102.0,0.4934]
[1765645910296,4.61349666,3102.1,3102.0,0.4934]
[1765645910500,1.38987396,3102.1,3102.0,0.4934]
[1765645916379,1.38971075,3102.1,3102.0,0.4934]
[1765645920436,1.38971075,3102.1,3101.9,0.4506]
[1765645920437,0.58047529,3102.0,3101.7,0.4506]
[1765645920729,0.58047529,3102.0,3101.6,3.829]
[1765645920730,0.30023546,3101.9,3101.6,3.829]
[1765645920933,0.30023546,3101.8,3101.6,3.829]
[1765645921135,0.30023546,3101.7,3101.6,3.829]
[1765645921608,0.30023546,3101.7,3101.6,4.3135]
[1765645921806,0.30023546,3101.7,3101.6,4.7641]
[1765645923108,0.80923546,3101.7,3101.6,3.829]
[1765645923739,0.80923546,3101.7,3101.6,4.3135]
[1765645924046,0.80923546,3101.7,3101.6,0.4845]
[1765645924249,0.30023546,3101.7,3101.6,0.4845]
[1765645924418,0.30023546,3101.7,3101.6,0.9351]
[1765645924625,0.30023546,3101.7,3101.6,4.15924237]
[1765645925150,0.30023546,3101.7,3101.6,4.8976015]
[1765645926523,0.30088946,3101.7,3101.6,4.8976015]
[1765645927429,0.30088946,3101.7,3101.6,1.67345913]
[1765645927629,0.30088946,3101.7,3101.6,0.9351]
[1765645927856,0.30088946,3101.7,3101.6,4.15924237]
[1765645928353,0.30088946,3101.7,3101.6,0.9351]
[1765645928752,0.30088946,3101.7,3101.6,4.15924237]
[1765645931858,0.30088946,3101.7,3101.6,0.9351]
[1765645933158,0.30088946,3101.7,3101.6,4.15924237]
[1765645933329,0.30088946,3101.7,3101.6,4.95807488]
[1765645936061,0.30088946,3101.7,3101.6,1.73393251]
[1765645936435,0.30088946,3101.7,3101.6,1.28333251]
[1765645937667,0.30088946,3101.7,3101.6,0.79883251]
[1765645937960,0.74758946,3101.7,3101.6,0.79883251]
[1765645938166,0.30088946,3101.7,3101.6,1.28333251]
[1765645938866,0.30088946,3101.7,3101.6,4.95807488]
[1765645940268,0.30088946,3101.7,3101.6,1.73393251]
[1765645940458,0.30088946,3101.7,3101.6,1.28333251]
[1765645941841,0.74758946,3101.7,3101.5,3.829]
[1765645942043,0.30088946,3101.6,3101.5,3.829]
[1765645942456,0.30088946,3101.6,3101.5,7.54854633]
[1765645943688,0.30088946,3101.6,3101.5,8.00174633]
[1765645945667,0.30088946,3101.6,3101.5,4.7775]
[1765645945867,0.30088946,3101.6,3101.5,8.00174633]
[1765645947669,0.30088946,3101.6,3101.5,4.17274633]
[1765645948974,0.30088946,3101.6,3101.5,4.91246445]
[1765645949472,0.30151564,3101.6,3101.5,4.91246445]
[1765645953675,0.30151564,3101.6,3101.5,8.74146445]
[1765645959780,0.28467003,3101.6,3101.5,8.74146445]
[1765645959976,0.28467003,3101.6,3101.5,8.28826445]
[1765645960170,0.28467003,3101.6,3101.5,8.78716445]
[1765645960375,0.001,3102.4,3101.6,0.92961645]
[1765645960676,0.001,3102.4,3101.6,1.42851645]
[1765645960876,0.001,3102.4,3101.7,0.4989]
[1765645961074,0.6,3102.3,3101.7,0.4989]
[1765645961379,0.6,3102.3,3101.7,0.9682]
[1765645961676,0.6,3102.3,3102.2,0.6674]
[1765645961847,0.6,3102.3,3102.2,3.89091879]
[1765645962052,0.001,3102.4,3102.2,3.89091879]
[1765645962354,0.001,3102.4,3102.3,0.4731]
[1765645962554,0.001,3102.4,3102.3,0.972]
[1765645962864,0.001,3102.4,3102.3,1.74624188]
[1765645963955,0.001,3102.4,3102.3,4.96965676]
[1765645968385,0.001,3102.4,3102.3,5.09872544]
[1765645969467,0.001,3102.4,3102.3,8.92772544]
[1765645969979,0.001,3102.4,3102.3,8.42882544]
[1765645970354,0.001,3102.4,3102.3,8.92772544]
[1765645974579,0.001,3102.4,3102.3,5.09872544]
[1765645978297,0.001,3102.4,3102.3,4.59982544]
[1765645978593,0.001,3102.4,3102.3,5.09512544]
[1765645978786,0.4676,3102.4,3102.3,4.59982544]
[1765645979089,0.001,3102.4,3102.3,4.59982544]
[1765645979792,0.001,3102.4,3102.3,5.09512544]
[1765645980317,0.001,3102.4,3102.3,8.92412544]
[1765645980492,0.001,3102.4,3102.3,8.42882544]
[1765645980677,0.9258,3102.4,3102.3,7.95572544]
[1765645981065,0.4676,3102.4,3102.3,7.95572544]
[1765645981270,0.9258,3102.4,3102.3,7.95572544]
[1765645982695,0.001,3102.4,3102.3,7.95572544]
[1765645982993,0.001,3102.4,3102.3,8.93182544]
[1765645984273,0.001,3102.4,3102.3,9.91780473]
[1765645985170,0.001,3103.0,3102.3,9.91780473]
[1765645985171,0.001,3104.2,3104.0,0.405504]
[1765645985397,0.001,3104.2,3103.9,0.64919806]
[1765645985398,0.001,3104.2,3104.1,0.509]
[1765645985778,0.001,3104.2,3104.1,0.9898]
[1765645985966,0.001,3104.2,3104.1,2.10964981]
[1765645987075,0.001,3104.2,3104.1,4.8358955]
[1765645987378,0.001,3104.2,3104.1,5.3311955]
[1765645988695,0.001,3104.2,3104.1,4.8358955]
[1765645988906,0.4676,3104.2,3104.1,3.8460955]
[1765645989206,0.9258,3104.2,3104.1,4.3550955]
[1765645989400,0.9258,3104.2,3104.1,3.68074569]
[1765645989598,0.9258,3104.2,3103.9,3.39006222]
[1765645989599,0.9258,3104.2,3103.9,3.39006256]
[1765645989800,0.0744,3104.0,3103.9,3.39006256]
[1765645990106,0.4592,3104.2,3103.9,7.53761583]
[1765645990608,0.4666,3104.0,3103.9,3.2216645]
[1765645991202,0.9248,3104.0,3103.9,3.2216645]
[1765645992198,0.9248,3104.0,3103.7,3.68107103]
[1765645992199,0.9248,3104.0,3103.8,3.22185707]
[1765645992503,0.4582,3103.9,3103.8,3.22185707]
[1765645992686,1.1053,3103.9,3103.8,3.22185707]
[1765645993097,1.1053,3103.9,3103.7,0.4592]
[1765645993313,0.5326,3103.8,3102.4,1.90387951]
[1765645993503,0.5326,3103.8,3103.5,3.22214781]
[1765645993706,0.5326,3103.8,3103.6,3.22202472]
[1765645994002,1.1326,3103.8,3103.6,3.22202472]
[1765645994301,0.4627,3103.7,3103.1,6.44516772]
[1765645994606,0.4666,3103.2,3103.1,3.22258386]
[1765645994802,0.4666,3103.2,3103.1,3.91801208]
[1765645996912,0.4582,3103.5,3103.1,7.14059594]
[1765645997077,0.1805,3103.9,3103.1,7.62139594]
[1765645997279,0.4582,3103.8,3103.1,7.62139594]
[1765645997476,0.4582,3103.8,3103.1,11.0355798]
[1765645997680,0.1805,3103.9,3103.2,1.2134327]
[1765645997874,0.6387,3103.9,3103.2,1.2134327]
[1765645999005,0.6387,3103.9,3103.3,6.44475236]
[1765646000104,0.4582,3103.8,3103.3,6.44475236]
[1765646000316,0.4666,3103.4,3103.3,3.22237618]
[1765646000609,0.4666,3103.4,3103.3,5.42759906]
[1765646001521,0.9248,3103.4,3103.2,3.22245137]
[1765646001814,0.4582,3103.4,3103.2,3.22245137]
[1765646001985,0.9317,3103.3,3103.2,3.22245137]
[1765646006984,0.46,3103.3,3103.2,3.22245137]
[1765646007183,0.46,3103.3,3103.2,7.05245137]
[1765646007385,0.46,3103.3,3103.2,8.46026177]
[1765646009898,0.4914,3103.5,3103.2,12.15494179]
[1765646010421,0.4914,3103.7,3103.2,12.15494179]
[1765646012323,0.4914,3103.7,3103.2,11.68274179]
[1765646013002,0.4914,3103.7,3103.2,7.85274179]
[1765646014227,0.4914,3103.7,3103.3,1.16827418]
[1765646016418,0.4914,3103.7,3103.4,3.22227234]
[1765646017323,0.1805,3103.9,3103.4,6.44454468]
[1765646017523,0.30082563,3103.8,3103.4,6.44454468]
[1765646017717,0.30082563,3103.7,3103.4,6.44454468]
[1765646017920,0.4914,3103.9,3103.5,0.76128189]
[1765646018104,0.30082572,3103.8,3103.5,0.76128189]
[1765646018309,0.30082572,3103.7,3103.5,0.76128189]
[1765646018526,0.4914,3103.8,3103.6,3.22206469]
[1765646018832,0.30103528,3103.7,3103.6,3.22206469]
[1765646019129,0.78723528,3103.7,3103.6,3.22206469]
[1765646019334,1.27863528,3103.7,3103.6,3.22206469]
[1765646020131,1.27863528,3103.7,3103.5,3.98340684]
[1765646020302,1.27863528,3103.6,3103.5,3.98340684]
[1765646024535,0.78873528,3103.6,3103.5,3.98340684]
[1765646026337,1.27863528,3103.6,3103.5,3.22212495]
[1765646028343,1.27863528,3103.6,3103.4,3.22227234]
[1765646028542,0.30103528,3103.5,3103.4,3.22227234]
[1765646028741,0.78873528,3103.5,3103.4,3.22227234]
[1765646029441,1.27863528,3103.5,3103.4,3.22227234]
[1765646029641,1.27863528,3103.5,3103.4,3.96853456]
[1765646029835,0.30103528,3103.5,3103.4,4.44073456]
[1765646030031,0.30165725,3103.5,3103.4,4.44073456]
[1765646030355,0.30163805,3104.1,3103.4,14.56825158]
[1765646030636,0.001,3104.2,3103.5,0.49292168]
[1765646030839,0.001,3104.2,3104.1,0.4722]
[1765646031147,0.30264514,3104.2,3104.1,0.6625]
[1765646031346,0.30264514,3104.2,3104.1,1.1232]
[1765646031347,0.001,3104.2,3104.1,1.1232]
[1765646032051,0.001,3104.2,3104.1,1.25220375]
[1765646032522,0.001,3104.2,3104.1,4.01304944]
[1765646032728,0.4887,3104.2,3104.1,4.44708561]
[1765646032916,0.001,3104.2,3104.1,4.91928561]
[1765646035139,0.001,3104.2,3104.1,5.40738561]
[1765646036215,0.001,3104.2,3104.1,4.91928561]
[1765646036851,0.001,3104.2,3104.1,5.40738561]
[1765646038333,0.001,3104.2,3104.1,5.27838186]
[1765646039251,0.001,3104.2,3104.1,4.79028186]
[1765646041053,0.9293,3104.2,3104.1,4.31808186]
[1765646041254,0.9293,3104.2,3104.1,3.22154569]
[1765646043146,0.9293,3104.2,3103.8,6.44371414]
[1765646043147,0.4574,3104.2,3103.8,6.44371414]
[1765646044057,0.9293,3104.2,3103.8,6.44371414]
[1765646045272,0.4574,3104.2,3103.8,6.93181414]
[1765646045865,0.4574,3104.2,3103.8,6.44371414]
[1765646046031,0.9293,3104.2,3103.9,1.01746132]
[1765646046627,0.001,3104.2,3104.1,0.4788]
[1765646047145,0.001,3104.2,3104.1,3.22154569]
[1765646047146,0.9293,3104.2,3104.1,3.22154569]
[1765646047658,0.001,3104.2,3104.1,3.70034569]
[1765646047887,0.001,3104.2,3104.1,3.73256114]
[1765646048043,0.001,3104.2,3104.1,5.35867874]
[1765646048861,0.001,3104.2,3104.1,4.87057874]
[1765646049054,0.001,3104.2,3104.1,4.90077874]
[1765646049255,0.001,3104.2,3104.1,5.37957874]
[1765646051874,0.001,3104.2,3104.1,4.87057874]
[1765646052073,0.001,3104.2,3104.1,5.86767874]
[1765646059473,0.001,3104.2,3104.1,5.37957874]
[1765646062867,0.001,3104.2,3104.1,5.84267874]
[1765646063489,0.001,3104.2,3104.1,4.90077874]
[1765646065072,0.001,3104.2,3104.1,5.36617874]
[1765646066605,0.9402,3104.2,3104.1,3.22154569]
[1765646066894,0.9402,3104.2,3103.7,0.509]
[1765646067102,0.4718,3103.8,3103.7,0.509]
[1765646067607,0.9392,3103.8,3103.7,0.509]
[1765646069595,0.9392,3103.8,3103.7,3.22196088]
[1765646069899,0.9392,3103.8,3103.7,4.18859067]
[1765646070568,0.4718,3103.8,3103.7,4.18859067]
[1765646075210,0.9392,3103.8,3103.7,3.22196088]
[1765646075709,0.4718,3103.8,3103.7,3.22196088]
[1765646076389,0.001,3104.2,3103.7,6.44392176]
[1765646076590,0.4674,3104.1,3103.7,6.93682176]
[1765646076991,0.4674,3104.1,3103.7,6.44392176]
[1765646077196,0.4674,3104.1,3103.7,3.22196088]
[1765646077938,0.4674,3104.1,3103.6,6.44412938]
[1765646078121,0.4674,3104.1,3103.6,7.35097109]
[1765646078415,0.001,3104.2,3103.7,0.4757]
[1765646078600,0.4684,3104.2,3103.7,0.4757]
[1765646078804,0.4684,3104.2,3103.6,7.35097109]
[1765646079001,0.4684,3104.2,3103.6,10.57303578]
[1765646080107,0.4684,3104.2,3103.6,11.04873578]
[1765646080901,0.4684,3104.2,3103.6,10.57303578]
[1765646085824,0.4684,3104.2,3103.8,6.44371414]
[1765646086225,0.4718,3103.9,3103.8,3.22185707]
[1765646087328,0.4718,3103.9,3103.8,7.05185707]
[1765646087622,0.9392,3103.9,3103.8,7.05185707]